Cogmind - Beta 15 @@@ ROGUE MODE // 2025.06.14 @ 12:41:00 Player: Storm Mk9 Result: Self-destructed Performance ------------- Evolutions (2) 1000 Regions Visited (4) 800 Robots Destroyed (19) 95 Value Destroyed (310) 310 Prototype IDs (5) 100 Alien Tech Used (0) 0 Bonus (0) 0 TOTAL SCORE: 2305 Bonus ------- None Cogmind --------- Core Integrity 437/550 Matter 285/300 Energy 800/800 System Corruption 5% Temperature Cool (0) Movement Hovering (180) Ox2 Location -8/Materials Parts ------- > --- POWER (1) -------- Hybrid Deuterium Engine > --- PROPULSION (3) --- Gravmag System > --- UTILITY (4) ------ Small Storage Unit Seismic Detector Advanced Targeting Computer Hardened Medium Armor Plating > --- WEAPON (3) ------- Precision Beam Rifle Light Assault Rifle Impact Mace > --- INVENTORY (8) ---- Nuclear Core Gravmag System Large Matter Pod (139) Pulse Rifle Heavy Assault Rifle Peak State ------------ > --- POWER ------------ Hybrid Deuterium Engine > --- PROPULSION ------- Aerolev Unit Gravmag System Gravmag System > --- UTILITY ---------- Small Storage Unit Seismic Detector Advanced Targeting Computer Hardened Medium Armor Plating > --- WEAPON ----------- Precision Beam Rifle Light Assault Rifle Impact Mace > --- INVENTORY -------- Nuclear Core Gravmag System Large Matter Pod Pulse Rifle Heavy Assault Rifle [Rating: 35] Favorites ----------- Power Ion Engine Engine Ion Engine Propulsion Aluminum Leg Treads Light Treads Leg Aluminum Leg Hover Unit Gravmag System Utility Small Storage Unit Device Seismic Detector Storage Small Storage Unit Processor Advanced Targeting Computer Protection Core Shielding Weapon Assault Rifle Energy Gun Precision Beam Rifle Ballistic Gun Assault Rifle Launcher Grenade Launcher Impact Weapon Impact Mace Build | -11 -10 -10 -10 -8 ------- Run | Yrd Mat Min Sub Mat Slots Evolved 4 | . . . . 4 Power . | . . . . . Propulsion 1 | . . . . 1 Utility 2 | . . . . 2 Weapon 1 | . . . . 1 Parts Attached 24 | 7 1 3 . 13 Power 3 | 1 . 1 . 1 Engine 3 | 1 . 1 . 1 Core . | . . . . . Reactor . | . . . . . Propulsion 7 | 2 . . . 5 Treads 1 | . . . . 1 Leg 2 | 2 . . . . Wheel . | . . . . . Hover 4 | . . . . 4 Flight . | . . . . . Utility 6 | 2 1 . . 3 Device 2 | 1 . . . 1 Storage 1 | 1 . . . . Processor 1 | . . . . 1 Hackware . | . . . . . Protection 2 | . 1 . . 1 Artifact . | . . . . . Weapon 8 | 2 . 2 . 4 Energy Gun 1 | . . . . 1 Energy Cannon . | . . . . . Ballistic Gun 4 | 2 . 1 . 1 Ballistic Cannon . | . . . . . Launcher 1 | . . 1 . . Special Weapon . | . . . . . Impact Weapon 2 | . . . . 2 Slashing Weapon . | . . . . . Piercing Weapon . | . . . . . Special Melee Weapon . | . . . . . Unidentified Prototypes 3 | . . . . 3 Parts Lost 7 | . . 1 . 6 Power . | . . . . . Propulsion 3 | . . . . 3 Utility 2 | . . . . 2 Weapon 2 | . . 1 . 1 Highest Loss Streak 6 | . . 1 . 6 To Critical Strikes . | . . . . . Average Backups 7 | 4 7 7 8 7 Power . | . 1 1 1 1 Propulsion 1 | 1 2 2 2 1 Utility 1 | . 1 2 2 1 Weapon 2 | 1 2 2 3 2 Tool/Special . | . . . . . Unused Backups 10 | . . . . 10 Power 3 | . . . . 3 Propulsion 2 | . . . . 2 Utility 1 | . . . . 1 Weapon 4 | . . . . 4 Tool/Special . | . . . . . Average Slot Usage (%) 98 | . 100 100 100 96 Engine 12 | . 14 14 14 9 Leg 18 | . 28 28 28 1 Hover 9 | . . . . 24 Device 10 | . 9 14 14 8 Storage 12 | . 14 14 14 9 Processor 2 | . . . . 6 Protection 4 | . 4 . . 8 Energy Gun 2 | . . . . 5 Ballistic Gun 24 | . 28 27 28 19 Peak Build Rating 35 | 7 7 8 8 35 Average Rating 14 | 5 7 7 8 27 On Entrance 6 | . 7 7 8 8 Naked Turns . | . . . . . Heaviest Build 27 | 14 14 14 12 27 Greatest Support 27 | 20 20 20 20 27 Greatest Overweight (x) 1 | . . . . 1 Average Overweight (x) . | . . . . . Largest Inventory Capacity 8 | 8 8 8 8 8 Average Capacity 7 | 7 8 8 8 8 Most Carried 8 | 6 8 8 8 8 Average Carried 7 | 4 7 7 8 7 Final Capacity 8 | 8 8 8 8 8 Final Carried 8 | 5 8 8 8 5 Class Distribution -------------------- 69% | Mutant 21% | Gunner 9% | Tank Dominant Class ---------------- Mutant | -10/Materials Mutant | -10/Mines Mutant | -10/Subcaves Gunner | -8/Materials Resources | -11 -10 -10 -10 -8 ----------- Run | Yrd Mat Min Sub Mat Matter Collected 765 | 230 . 47 . 488 Remotely . | . . . . . Salvage Created 371 | 29 61 95 . 186 Parts 28 | 4 1 11 . 12 Haulers Intercepted . | . . . . . Recyclers Shooed . | . . . . . Parts Field Recycled . | . . . . . Retrieved Matter . | . . . . . Parts Self-Destructed . | . . . . . Prevented . | . . . . . Kills | -11 -10 -10 -10 -8 ------- Run | Yrd Mat Min Sub Mat Combat Hostiles Destroyed 16 | . 2 8 . 6 Guns 13 | . 2 7 . 4 AOE 1 | . . 1 . . Classes Destroyed 5 | 1 2 . . 2 Worker 1 | . 1 . . . Tunneler 2 | 2 . . . . Swarmer 13 | . 2 8 . 3 Sentry 2 | . . . . 2 Hunter 1 | . . . . 1 Best Kill Streak 6 | 1 2 6 . 3 Combat Bots Only 6 | . 1 6 . 3 Max Kills in Single Turn 1 | 1 1 1 . 1 Gunslinging . | . . . . . Exploded 1 | . . 1 . . Melee . | . . . . . Uniques/NPCs Destroyed . | . . . . . Combat | -11 -10 -10 -10 -8 -------- Run | Yrd Mat Min Sub Mat Hostile Shots Fired 104 | . 9 44 . 51 Missed 32 | . 3 10 . 19 Hits 72 | . 6 34 . 32 Projectile 72 | . 6 34 . 32 Critical Strikes 2 | . 1 . . 1 Damage Taken 1136 | . 46 355 . 735 Core 198 | . 16 69 . 113 Absorbed by Shields . | . . . . . Redirected to Shielding 22 | . . . . 22 Core Remaining (%) 83 | 100 . . 66 . Volleys Fired 34 | 9 5 14 . 6 Largest 3 | 2 2 2 . 3 Hottest 60 | 40 40 40 . 60 Shots Fired 72 | 18 10 26 . 18 Gun 70 | 18 10 24 . 18 Cannon . | . . . . . Launcher 2 | . . 2 . . Special . | . . . . . Kinetic 70 | 18 10 24 . 18 Thermal . | . . . . . Explosive 2 | . . 2 . . Electromagnetic . | . . . . . Robot Hit Streak 6 | 6 3 4 . 6 Robot Miss Streak 3 | 2 2 3 . 2 Penetration Max . | . . . . . Secondary Targets 1 | . . 1 . . Max Gunslinging Chain 1 | . . 1 . . Shots Hit Robots 47 | 11 5 14 . 17 Core Hits 22 | 4 3 9 . 6 Critical Kills . | . . . . . Critical Parts Destroyed 4 | . . . . 4 Critical Strikes 4 | . . . . 4 Smash 4 | . . . . 4 Melee Attacks 16 | . . . . 16 Impact 16 | . . . . 16 Slashing . | . . . . . Piercing . | . . . . . Sneak Attacks . | . . . . . Combat Hostiles . | . . . . . Follow-up Attacks . | . . . . . Damage Inflicted 896 | 120 57 294 . 425 Guns 392 | 120 57 121 . 94 Cannons . | . . . . . Explosions 173 | . . 173 . . Melee 331 | . . . . 331 Ramming . | . . . . . Kinetic 392 | 120 57 121 . 94 Thermal 49 | . . 49 . . Explosive 124 | . . 124 . . Electromagnetic . | . . . . . Impact 331 | . . . . 331 Slashing . | . . . . . Piercing . | . . . . . Highest Corruption 5 | . . . . 5 Average Corruption 5 | . . . . 5 Corruption Purged . | . . . . . Corruption Blocked . | . . . . . Effects 1 | . . . . 1 Message Errors 1 | . . . . 1 Overload Shots . | . . . . . Overflow Damage 266 | . . 77 . 189 Projectiles . | . . . . . Explosions 77 | . . 77 . . Melee 189 | . . . . 189 Knockbacks 1 | . . . . 1 Impact 1 | . . . . 1 Kinetic . | . . . . . Secondary . | . . . . . Self-Inflicted Damage 76 | . . 76 . . Shots 2 | . . 2 . . Rammed . | . . . . . Targets Rammed . | . . . . . Kicked . | . . . . . Crushed . | . . . . . Highest Temperature 353 | . . 19 . 353 Average Temperature 145 | . . 16 . 162 Received Heat Transfer 153 | . . . . 153 Siege Activations . | . . . . . Martial Activations . | . . . . . Shielding Activations . | . . . . . Robots Disrupted . | . . . . . Combat Hostiles . | . . . . . Robots Corrupted 2 | . . . . 2 Combat Hostiles 2 | . . . . 2 Parts Fried 4 | . . . . 4 Impact Corruptions 4 | . . . . 4 Robots Melted . | . . . . . Combat Hostiles . | . . . . . Parts Melted . | . . . . . Heat Transferred 50 | . . 50 . . Parts Sabotaged . | . . . . . Parts Stolen . | . . . . . Parts Stripped . | . . . . . Power Chain Reactions . | . . . . . Alert | -11 -10 -10 -10 -8 ------- Run | Yrd Mat Min Sub Mat Maximum Alert Level . | . . . . . Low Security (%) 100 | 100 100 100 . 100 Level 1 . | . . . . . Level 2 . | . . . . . Level 3 . | . . . . . Level 4 . | . . . . . Level 5 . | . . . . . High Security . | . . . . . Max Security . | . . . . . Peak Influence 188 | 5 65 188 . 139 Initial 10 | . . 10 . . Average 44 | . 15 92 . 41 Influence Increases 782 | 10 149 248 . 375 Destroy 0b10 Robot/C 320 | . 40 160 . 120 Destroy 0b10 Robot/NC 15 | 10 5 . . . Destroy Leader 80 | . 10 30 . 40 Successful Hack 4 | . 4 . . . Disable Machine 30 | . . 30 . . Destroy Structure 33 | . . 28 . 5 Lose Combat Pursuer 300 | . 90 . . 210 Influence Decreases 678 | 10 122 257 18 271 Entered New Map 27 | . . 17 10 . Time Decay 581 | 10 122 230 8 211 Lost Part 70 | . . 10 . 60 Squads Dispatched 3 | . 1 . . 2 Investigation 1 | . . . . 1 Extermination . | . . . . . Reinforcement 2 | . 1 . . 1 Assault . | . . . . . Garrison . | . . . . . Intercept . | . . . . . Searches Triggered . | . . . . . Construction Impeded . | . . . . . Haulers Reinforced . | . . . . . Active Scanning Responses . | . . . . . Cargo Convoy Interrupts . | . . . . . Stealth | -11 -10 -10 -10 -8 --------- Run | Yrd Mat Min Sub Mat Distress Signals 4 | . 2 . . 2 Communications Jammed . | . . . . . Distress Signals . | . . . . . Times Spotted 44 | . 10 8 . 26 Peak Tracking Total 10 | . 5 3 . 10 Tactical Retreats 10 | . 3 . . 7 Traps | -11 -10 -10 -10 -8 ------- Run | Yrd Mat Min Sub Mat Traps Triggered 1 | . . . . 1 Indirectly . | . . . . . Trap Hack Attempts . | . . . . . Triggered . | . . . . . Disarmed 1 | . 1 . . . Reprogrammed . | . . . . . Reused . | . . . . . Traps Extracted . | . . . . . Installed . | . . . . . Triggered . | . . . . . Machines | -11 -10 -10 -10 -8 ---------- Run | Yrd Mat Min Sub Mat Machines Disabled 2 | . . 2 . . Max in Single Turn 2 | . . 2 . . Machines Repaired . | . . . . . Machines Dismantled . | . . . . . Machines Sabotaged . | . . . . . Overloaded Fab Kills . | . . . . . Hacking | -11 -10 -10 -10 -8 --------- Run | Yrd Mat Min Sub Mat Machines Accessed 8 | . 7 . . 1 Terminals 5 | . 5 . . . Fabricators . | . . . . . Repair Stations . | . . . . . Recycling Units 3 | . 2 . . 1 Scanalyzers . | . . . . . Garrison Access . | . . . . . Total Hacks 24 | . 22 . . 2 Successful 18 | . 16 . . 2 Failed 6 | . 6 . . . Catastrophic 1 | . 1 . . . Database Lockouts . | . . . . . Manual 9 | . 9 . . . Terminals 19 | . 19 . . . Fabricators . | . . . . . Repair Stations . | . . . . . Recycling Units 5 | . 3 . . 2 Scanalyzers . | . . . . . Garrison Access . | . . . . . Terminal Hacks 7 | . 7 . . . Prototype ID Bank 1 | . 1 . . . Locate Traps 2 | . 2 . . . Disarm Traps 1 | . 1 . . . Dispatch Records 1 | . 1 . . . Maintenance Status 1 | . 1 . . . Transport Status 1 | . 1 . . . Fabricator Hacks . | . . . . . Repair Station Hacks . | . . . . . Recycling Unit Hacks 5 | . 3 . . 2 Report Inventory 2 | . 1 . . 1 Retrieve Components 3 | . 2 . . 1 Scanalyzer . | . . . . . Garrison Access Hacks . | . . . . . Unauthorized Hacks 6 | . 6 . . . Terminals 6 | . 6 . . . Track 2 | . 2 . . . Botnet 3 | . 3 . . . Operators 1 | . 1 . . . Fabricators . | . . . . . Repair Stations . | . . . . . Recycling Units . | . . . . . Scanalyzers . | . . . . . Garrison Access . | . . . . . Data Cores Recovered . | . . . . . Used . | . . . . . Hacking Detections 5 | . 5 . . . Full Trace Events 1 | . 1 . . . Feedback Events . | . . . . . Feedback Blocked . | . . . . . Robot Schematics Acquired . | . . . . . Robots Built . | . . . . . Authchips . | . . . . . Time . | . . . . . Total Robot Build Rating . | . . . . . Part Schematics Acquired . | . . . . . Parts Built . | . . . . . Authchips . | . . . . . Time . | . . . . . Total Part Build Rating . | . . . . . Parts Repaired . | . . . . . Time . | . . . . . Parts Recycled . | . . . . . Recycled Matter . | . . . . . Retrieved Matter . | . . . . . Retrieved Components 8 | . 5 . . 3 Parts Scanalyzed . | . . . . . Part Schematics Acquired . | . . . . . Parts Damaged . | . . . . . Bothacking | -11 -10 -10 -10 -8 ------------ Run | Yrd Mat Min Sub Mat Used RIF Installer . | . . . . . Robots Hacked . | . . . . . Non-combat . | . . . . . Combat . | . . . . . Robot Hacks Applied . | . . . . . Relay Couplers Released . | . . . . . Fabnet Peak Effective % . | . . . . . Robots Rewired . | . . . . . Allies Hacked . | . . . . . Hacks Repelled . | . . . . . Allies | -11 -10 -10 -10 -8 -------- Run | Yrd Mat Min Sub Mat Total Allies . | . . . . . Largest Group . | . . . . . Highest-Rated Group . | . . . . . Highest-Rated Ally . | . . . . . Total Orders . | . . . . . Ally Attacks . | . . . . . Total Damage . | . . . . . Kills . | . . . . . Allies Corrupted . | . . . . . Allies Melted . | . . . . . Intel | -11 -10 -10 -10 -8 ------- Run | Yrd Mat Min Sub Mat Active Infowar (turns) 1637 | 28 367 490 96 656 Seismic 1637 | 28 367 490 96 656 Robot Analysis Total . | . . . . . Derelict Logs Recovered . | . . . . . Drone Launches . | . . . . . Drone Recoveries . | . . . . . Exploration | -11 -10 -10 -10 -8 ------------- Run | Yrd Mat Min Sub Mat Turns Passed 1944 | 170 519 490 96 669 Spaces Moved 1097 | 107 256 183 81 470 Core 5 | 5 . . . . Treads . | . . . . . Legs 646 | 102 256 183 81 24 Wheels . | . . . . . Hover 446 | . . . . 446 Flight . | . . . . . Fastest Speed 48 | 50 120 120 120 48 Average Speed 92 | 116 120 120 120 56 Slowest Speed 130 | 120 120 120 120 130 Overloaded Moves . | . . . . . Propulsion Burnouts . | . . . . . Robots Hopped . | . . . . . Potential Cave-ins 1 | . . . . 1 Cave-ins Triggered 1 | . . . . 1 Exploration Rate (%) 28 | 6 54 36 6 42 Regions Visited 4 Branch Regions 2 Pre-discovered Areas . | . . . . . Known Exits Taken . | . . . . . Unknown Exits Taken 4 | 1 1 1 1 . Scrap Searched . | . . . . . Spaces Dug 6 | . . . . 6 Terrain Destroyed 35 | . . 29 . 6 Melee 6 | . . . . 6 Projectile . | . . . . . AOE 29 | . . 29 . . Terrain Rammed . | . . . . . Walls Destroyed . | . . . . . Machines Disabled . | . . . . . Actions | -11 -10 -10 -10 -8 --------- Run | Yrd Mat Min Sub Mat Total 1941 | 136 458 430 80 837 Wait 723 | 2 193 227 . 301 Move 1093 | 106 255 182 80 470 Hop . | . . . . . Pick Up 31 | 12 3 1 . 15 Fast Attach 1 | . . . . 1 Attach 21 | 7 . 1 . 13 Detach . | . . . . . Swap 9 | . 2 3 . 4 Drop 13 | . . 2 . 11 Fire 34 | 9 5 14 . 6 Melee 16 | . . . . 16 Ram . | . . . . . Kick . | . . . . . Crush . | . . . . . Escape Stasis . | . . . . . Rewire . | . . . . . Trap . | . . . . . Miscellaneous . | . . . . . Route ------- -11/Scrapyard -10/Materials (discovered 2 exits: [*Mat] / [*Min]) -10/Mines -10/Subcaves -8/Materials History --------- Turn | Location | Event 6 | -11/Scrapyard | Discovered new exit (range 15) 171 | -11/Scrapyard | Entered Materials 307 | -10/Materials | Build established: Mutant 490 | -10/Materials | Discovered new exit (range 12) 651 | -10/Materials | Discovered new exit (range 7) 690 | -10/Materials | Entered Mines 1134 | -10/Mines | A weapon hastily lodged in a ceiling crevice suddenly fell to the ground 1175 | -10/Mines | Discovered new exit (range 6) 1180 | -10/Mines | Entered Subcaves 1251 | -10/Subcaves | Shifting Twisted Machinery released Battle Cannon 1255 | -10/Subcaves | Shifting Twisted Machinery released Flamer 1269 | -10/Subcaves | Discovered new exit (range 7) 1276 | -10/Subcaves | Entered Materials 1276 | -8/Materials | Evolved 4 slots: Propulsion x1, Utility x2, Weapon x1 1751 | -8/Materials | Build established: Gunner 1911 | -8/Materials | Crushed by falling debris 1945 | -8/Materials | Self-destructed Last Messages --------------- 01876_ K-01 Serf collects debris. 01878_ Acquired 42 matter. 01879_ K-01 Serf collects debris. 01897_ Gravmag System destroyed. 01899_ Identified Aerolev Unit. 01911_ The unstable cave ceiling collapses. 01911_ Crushed by falling debris. 01911_ Assault Rifle destroyed. 01911_ System corrupted by crushing effect (+5). 01911_ Core Shielding destroyed. 01912_ Seismic Detector destroyed. 01924_ Acquired Seismic Detector. 01926_ 6KH#D2ISM51YVC79FB4JUAG 01935_ The unstable cave ceiling collapses. 01935_ G-47 Trooper crushed by falling debris. 01937_ Y-45 Defender suffers critical hit (Smash). 01937_ Destroyed Heat Sink. 01937_ Y-45 Defender system corrupted by crushing effect. 01937_ Gravmag System destroyed. 01940_ Aerolev Unit destroyed. Map ----- +----------------------------------------------------+ | | | | | | | | | ?????????????????????????????????????????????????? | | ?????????????????????????????????????????????????? | | ?????????????????????????????????????????????????? | | ?????????????????????????????????????????????????? | | ?????????????????????????????????????????????????? | | ?????????????????????????????????????????????????? | | ??#######????????????????????????????????????????? | | #????????????????????????????????????????? | | "" #????????????????????????????????????????? | | "T =#????????????????????????????????????????? | | "" #????????????????????????????????????????? | | #????????????????????????????????????????? | | ##???????????????????????????????????????? | | ! !! #???????????????????????????????????????? | | ! #????????????????????????????????????????? | | ??! ??????????????????????????????????????????? | | ???#+#??????????###########??????????????????????? | | ???# #??????????# !! #??????????????????????? | | ???# #???????????# !! """#??????????????????????? | | ???# #???????????# ! T"#?? #??????????????????? | | ???# ############# """# #??????????????????? | | ???# / ## g @Y +??????????????????? | | ???# # !! # # """g # #??????????????????? | | ??## # !! ### """ #?? #??????????????????? | | ??# # !! ### """ ]#??????????????????????? | | ## # #?# #??????????????????????? | | / # = #?##########??????????????????????? | | ## / #?????????????????????????????????? | | ??# # #?????????????????????????????????? | | ??# # #?????????????????????????????????? | | ?## ##########?????????????????????????????????? | | ## #?????????????????????????????????????????? | | T" #?????????????????????????????????????????? | | " #?????????????????????????????????????????? | | #?????????????????????????????????????????? | | ## /#?????????????????????????????????????????? | | ?## ##?????????????????????????????????????????? | | ??# #??????????????????????????????????????????? | | ??# #??????????????????????????????????????????? | | ??+ #??????????????????????????????????????????? | | ??# #??????????????????????????????????????????? | | ??# #??????????????????????????????????????????? | | ??# #??????????????????????????????????????????? | | ??# #???? #???????????????????????????????????? | | ??# #??"" #???????????????????????????????????? | | ??# # """ #?????########??????????????????????? | +----------------------------------------------------+ Best States ------------- Heat Dissipation 31 Energy Generation 10 Energy Capacity 800 Matter Stores 300 Matter Capacity 300 Sight Range 16 Terrain Scan Density 10 Armor Coverage 225 Core Shielding 20 Evasion (%) 55 Targeting Accuracy 8 Item Schematics ----------------- None Robot Schematics ------------------ None Fabricated ------------ Nothing Repaired ---------- Nothing Alien Tech Used ----------------- None Achievements -------------- None Challenges ------------ None Game ------ Seed BackupDirectedSlayer Manual? 0 Play Time 00:37:41 Cumulative 42.0 hours Start 2025.06.14 @ 12:02:12 End 2025.06.14 @ 12:41:00 Sessions 1 Manual Loads 0 Difficulty Rogue Special Mode None Game No. 35 Rogue 16 Adventurer 0 Explorer 19 Win Type - Total 0 Types 0/0/0/0/0/0/0/0/0/0 Lore% 40 Gallery% 32 Achievement% 67 Wizard Run 0 Options --------- Layout 1 ASCII 0 Keyboard 0 Movement Mouse Keybinds 0 Fullscreen 0 Font 14/SmallcapsGlow Map View 59x45 Zoom Use 0% Tactical HUD 1 Map Filters NONE Filters NONE Steam SD RUN: ffca126e-129d-4619-899c-6417790ea967